bitfinex/quotes_SOLUSD_20240530
["timestamp","ask_amount","ask_price","bid_price","bid_amount"]
[1717078886478,2.1857,169.28,169.23,68.8963]
[1717078886688,2.1857,169.28,169.24,45.0]
[1717078887193,2.1854,169.3,169.28,60.0]
[1717078887577,2.1855,169.29,169.28,60.0]
[1717078888503,2.1855,169.3,169.28,60.0]
[1717078890706,2.1855,169.3,169.25,68.896]
[1717078890879,2.1856,169.29,169.26,45.0]
[1717078891072,2.1856,169.29,169.25,60.0]
[1717078891388,2.1856,169.29,169.25,62.186]
[1717078891797,2.1855,169.3,169.28,60.0]
[1717078891970,13.79956482,169.35,169.21,2.1865]
[1717078891971,1.76990114,169.34,169.21,2.1865]
[1717078892174,6.5569,169.29,169.22,7.09356803]
[1717078892373,2.1861,169.25,169.23,7.09356803]
[1717078892590,2.1861,169.25,169.2,2.1867]
[1717078892871,2.1858,169.27,169.22,2.1864]
[1717078893089,2.1858,169.27,169.23,7.0935551]
[1717078893397,2.186,169.26,169.23,7.0935551]
[1717078893697,2.186,169.26,169.21,8.8965]
[1717078893880,2.1859,169.27,169.22,54.27984824]
[1717078894086,2.1859,169.27,169.23,7.09344824]
[1717078894292,2.186,169.26,169.23,7.09344824]
[1717078897890,2.186,169.26,169.23,13.80344824]
[1717078898089,2.186,169.26,169.23,6.71]
[1717078898398,2.186,169.26,169.24,7.09347069]
[1717078898893,13.1131,169.32,169.31,60.0]
[1717078899108,13.1131,169.32,169.25,24.48]
[1717078899109,13.1131,169.32,169.3,60.0]
[1717078899414,2.1851,169.33,169.28,29.0257]
[1717078899705,10.9263,169.32,169.26,60.0]
[1717078899874,4.3704,169.32,169.26,60.0]
[1717078900079,2.1856,169.29,169.26,60.0]
[1717078900386,2.1857,169.28,169.26,60.0]
[1717078900594,2.1856,169.29,169.26,60.0]
[1717078900780,2.1856,169.29,169.26,66.71]
[1717078900980,2.1856,169.29,169.27,6.21]
[1717078901306,2.1855,169.3,169.26,66.71]
[1717078901686,2.1855,169.29,169.28,60.0]
[1717078902101,2.1855,169.29,169.27,6.71]
[1717078902282,2.1855,169.29,169.26,66.71]
[1717078903002,2.1855,169.29,169.27,6.71]
[1717078903578,2.1855,169.3,169.28,60.0]
[1717078905596,2.1855,169.3,169.27,6.71]
[1717078905990,4.3699,169.34,169.29,60.0]
[1717078906195,4.3699,169.34,169.29,66.71]
[1717078906196,2.1852,169.32,169.29,66.71]
[1717078906496,2.1853,169.31,169.29,60.0]
[1717078907386,2.1852,169.32,169.29,60.0]
[1717078908401,2.1852,169.32,169.3,6.71]
[1717078908794,2.1852,169.32,169.29,66.71]
[1717078908996,4.3698,169.35,169.29,60.0]
[1717078909318,2.1852,169.32,169.29,60.0]
[1717078910015,2.1851,169.33,169.29,60.0]
[1717078910216,2.1851,169.33,169.31,60.0]
[1717078910783,2.1852,169.32,169.31,60.0]
[1717078911202,2.1851,169.33,169.31,60.0]
[1717078912225,2.1849,169.35,169.31,60.0]
[1717078912510,0.8250969,169.37,169.33,60.0]
[1717078913013,2.1847,169.36,169.33,60.0]
[1717078913309,3.0096969,169.37,169.35,60.0]
[1717078914687,2.1846,169.36,169.35,60.0]
[1717078915909,3.0096969,169.37,169.35,60.0]
[1717078916109,0.8250969,169.37,169.35,60.0]
[1717078916318,3.0096969,169.37,169.35,60.0]
[1717078917108,0.8250969,169.37,169.35,60.0]
[1717078917986,0.8250969,169.37,169.35,62.1847]
[1717078918185,0.8250969,169.37,169.36,45.0]
[1717078919489,0.8250969,169.37,169.35,60.0]
[1717078920013,0.8250969,169.37,169.36,2.1846]
[1717078920203,0.8250969,169.37,169.36,47.1846]
[1717078920905,0.8250969,169.37,169.36,84.8179]
[1717078921081,0.8250969,169.37,169.36,67.1846]
[1717078921288,0.8250969,169.37,169.36,22.1846]
[1717078922491,0.8250969,169.37,169.36,67.1846]
[1717078922708,0.8250969,169.37,169.36,73.8946]
[1717078923520,0.8250969,169.37,169.36,22.1846]
[1717078924110,0.8250969,169.37,169.36,28.8946]
[1717078924893,0.8250969,169.37,169.36,73.8946]
[1717078925797,0.8250969,169.37,169.36,93.5566]
[1717078926809,0.8250969,169.37,169.36,146.8266]
[1717078927214,0.8250969,169.37,169.36,140.1166]
[1717078927422,0.8250969,169.37,169.36,146.8266]
[1717078928217,0.8250969,169.37,169.36,149.36783414]
[1717078928806,0.8250969,169.37,169.36,156.07783414]
[1717078929119,2.1829,169.5,169.46,60.0]
[1717078929305,2.1827,169.51,169.46,62.1834]
[1717078929498,2.1829,169.5,169.46,62.1834]
[1717078930200,2.1829,169.5,169.49,60.0]
[1717078930504,0.8250969,169.54,169.49,60.0]
[1717078931047,2.1825,169.53,169.49,60.0]
[1717078931535,2.1826,169.52,169.49,60.0]
[1717078932625,0.8250969,169.54,169.49,60.0]
[1717078932626,2.1827,169.51,169.49,60.0]
[1717078933021,4.3653,169.52,169.44,60.0]
[1717078933231,2.183,169.49,169.45,2.1835]
[1717078933815,2.1829,169.5,169.45,2.1835]
[1717078934026,2.183,169.49,169.45,2.1835]
[1717078934344,2.1831,169.48,169.44,60.0]
[1717078934631,19.6463,169.5,169.42,62.1838]
[1717078934844,2.1833,169.47,169.42,62.1838]
[1717078935136,2.1833,169.47,169.43,2.1837]
[1717078935437,10.9147,169.5,169.43,2.1837]
[1717078935438,2.1831,169.48,169.43,2.1837]
[1717078935617,2.1833,169.47,169.42,60.0]
[1717078935819,2.1833,169.47,169.43,2.1837]
[1717078936119,2.1833,169.47,169.44,60.0]
[1717078936530,2.1833,169.47,169.46,60.0]
[1717078936732,2.1834,169.46,169.42,62.1838]
[1717078936931,2.1836,169.45,169.42,60.0]
[1717078937116,2.1833,169.47,169.42,62.1838]
[1717078937536,2.1834,169.46,169.44,60.0]
[1717078937733,2.1833,169.47,169.44,60.0]
[1717078938039,2.1834,169.46,169.42,62.1838]
[1717078938423,2.1834,169.46,169.44,60.0]
[1717078938743,2.1833,169.47,169.44,60.0]
[1717078939051,11.88792153,169.52,169.46,60.0]
[1717078939052,4.3656,169.51,169.46,60.0]
[1717078939343,2.1831,169.48,169.44,62.1835]
[1717078939835,2.183,169.49,169.44,62.1835]
[1717078940336,2.183,169.49,169.46,60.0]
[1717078940636,2.1829,169.5,169.46,60.0]
[1717078940828,6.71,169.49,169.46,60.0]
[1717078941225,6.71,169.49,169.48,60.0]
[1717078941427,0.8250969,169.54,169.5,60.0]
[1717078941735,0.8250969,169.54,169.53,60.0]
[1717078941937,3.0073969,169.54,169.53,60.0]
[1717078942141,9.7173969,169.54,169.53,60.0]
[1717078942319,7.5350969,169.54,169.53,60.0]
[1717078942740,9.7173969,169.54,169.53,60.0]
[1717078942921,3.0073969,169.54,169.51,60.0]
[1717078943116,2.1825,169.53,169.51,60.0]
[1717078943439,0.8250969,169.54,169.51,60.0]
[1717078943621,2.1825,169.53,169.51,60.0]
[1717078943821,2.1825,169.53,169.49,62.1829]
[1717078944446,0.8250969,169.54,169.53,60.0]
[1717078945034,0.8250969,169.54,169.51,60.0]
[1717078945236,3.0073969,169.54,169.51,60.0]
[1717078945618,0.8250969,169.54,169.53,60.0]
[1717078947138,3.0074969,169.54,169.51,60.0]
[1717078948168,0.8250969,169.54,169.51,60.0]
[1717078948450,3.0073969,169.54,169.51,60.0]
[1717078948653,2.1825,169.53,169.5,45.0]
[1717078948956,2.1827,169.52,169.49,60.0]
[1717078949130,0.8250969,169.54,169.51,60.0]
[1717078949334,2.1825,169.53,169.51,60.0]
[1717078949546,0.8250969,169.54,169.51,60.0]
[1717078949547,3.0073969,169.54,169.51,60.0]
[1717078949961,0.8250969,169.54,169.53,60.0]
[1717078950649,3.0073969,169.54,169.53,60.0]
[1717078950855,0.8250969,169.54,169.53,60.0]
[1717078952460,3.0073969,169.54,169.53,60.0]
[1717078953155,0.8250969,169.54,169.53,60.0]
[1717078953749,0.8250969,169.54,169.53,62.1825]
[1717078954256,0.8250969,169.54,169.53,60.0]
[1717078954455,0.8250969,169.54,169.53,105.0]
[1717078955760,7.5350969,169.54,169.51,62.1827]
[1717078955947,0.8250969,169.54,169.51,62.1827]
[1717078956270,0.8250969,169.54,169.52,2.1826]
[1717078956442,6.71,169.53,169.52,2.1826]
[1717078956757,0.8250969,169.54,169.52,2.1826]
[1717078956939,0.8250969,169.54,169.53,60.0]
[1717078957136,0.8250969,169.54,169.52,2.1826]
[1717078957376,0.8250969,169.54,169.49,60.0]
[1717078957663,2.1825,169.53,169.49,60.0]
[1717078957844,2.1826,169.53,169.49,60.0]
[1717078958042,0.8250969,169.54,169.49,60.0]
[1717078958260,2.1825,169.53,169.49,60.0]
[1717078959048,2.1826,169.52,169.49,60.0]
[1717078960159,2.1826,169.52,169.48,2.1831]
[1717078960365,0.8250969,169.54,169.47,60.0]
[1717078960660,0.8250969,169.54,169.47,62.1831]
[1717078960868,6.71,169.48,169.47,62.1831]
[1717078961046,6.71,169.48,169.47,107.1831]
[1717078961250,6.71,169.48,169.47,105.0]
[1717078961438,6.71,169.48,169.47,60.0]
[1717078961644,6.71,169.48,169.45,62.1834]
[1717078961943,11.0755,169.52,169.45,60.0]
[1717078962161,2.1831,169.49,169.45,60.0]
[1717078962359,11.0755,169.52,169.47,60.0]
[1717078962360,2.1829,169.5,169.47,60.0]
[1717078962665,2.183,169.49,169.45,62.1835]
[1717078962968,2.183,169.49,169.45,60.0]
[1717078963160,11.0755,169.52,169.45,60.0]
[1717078963161,6.71,169.52,169.45,60.0]
[1717078963482,6.71,169.52,169.41,4.368]
[1717078963483,6.71,169.52,169.41,60.0]
[1717078963646,6.71,169.52,169.43,60.0]
[1717078963647,2.1834,169.46,169.43,60.0]
[1717078964157,2.1833,169.47,169.43,60.0]
[1717078964464,2.1831,169.48,169.45,60.0]
[1717078964638,2.1832,169.47,169.43,60.0]
[1717078964842,2.1834,169.46,169.43,60.0]
[1717078965475,2.1833,169.47,169.43,60.0]
[1717078965849,2.1833,169.47,169.45,60.0]
[1717078966652,4.3658,169.5,169.45,60.0]
[1717078966653,2.1831,169.48,169.45,60.0]
[1717078967068,2.1832,169.47,169.45,60.0]
[1717078968282,2.1832,169.48,169.45,60.0]
[1717078968576,2.1832,169.47,169.45,60.0]
[1717078971871,2.1834,169.46,169.45,60.0]
[1717078972666,2.1834,169.46,169.42,2.1839]
[1717078972850,2.1833,169.47,169.45,60.0]
[1717078975272,2.1834,169.46,169.45,60.0]
[1717078975873,4.3664,169.48,169.43,60.0]
[1717078976178,2.1836,169.45,169.43,60.0]
[1717078976871,2.1834,169.46,169.43,60.0]
[1717078977264,4.3661,169.49,169.45,60.0]
[1717078977265,2.1833,169.47,169.45,60.0]
[1717078981459,2.1834,169.46,169.45,60.0]
[1717078981958,2.1833,169.47,169.45,60.0]
[1717078983870,2.1829,169.5,169.48,60.0]
[1717078984073,2.183,169.49,169.48,60.0]
[1717078984976,2.183,169.49,169.46,60.0]
[1717078984977,8.893,169.49,169.46,60.0]
[1717078985289,2.183,169.49,169.46,60.0]
[1717078985695,2.183,169.49,169.48,60.0]
[1717078985900,2.1829,169.5,169.48,60.0]
[1717078986184,4.3654,169.52,169.5,60.0]
[1717078986359,9.5547969,169.54,169.5,60.0]
[1717078986360,2.1827,169.51,169.5,60.0]
[1717078986766,2.1829,169.5,169.49,60.0]
[1717078988192,2.1828,169.51,169.49,60.0]
[1717078988692,20.4667969,169.54,169.49,60.0]
[1717078988693,2.1828,169.5,169.49,60.0]
[1717078990174,2.1828,169.5,169.46,2.1834]
[1717078990375,0.8250969,169.54,169.53,60.0]
[1717078990589,0.8250969,169.54,169.53,105.0]
[1717078990767,0.8250969,169.54,169.53,107.1825]
[1717078991178,0.8250969,169.54,169.53,113.8925]
[1717078991376,0.8250969,169.54,169.53,107.1825]
[1717078991672,0.8250969,169.54,169.53,113.8925]
[1717078991882,0.8250969,169.54,169.53,107.1825]
[1717078992192,0.8250969,169.54,169.53,180.4525]
[1717078992692,0.8250969,169.54,169.53,187.1625]
[1717078993171,0.8250969,169.54,169.53,127.1825]
[1717078993373,0.8250969,169.54,169.53,133.8925]
[1717078995191,0.8250969,169.54,169.53,127.1825]
[1717078995374,0.8250969,169.54,169.53,80.0]
[1717078995692,0.8250969,169.54,169.53,88.8925]
[1717078996567,0.8250969,169.54,169.53,133.8925]
[1717079001897,0.8250969,169.54,169.53,127.1825]
[1717079002400,0.8250969,169.54,169.53,144.9525]
[1717079002801,0.8250969,169.54,169.53,180.4525]
[1717079003875,0.8250969,169.54,169.53,203.40624034]
[1717079005497,0.8250969,169.54,169.53,143.40624034]
[1717079005697,0.8250969,169.54,169.53,165.11624034]
[1717079006399,0.8250969,169.54,169.53,158.40624034]
[1717079007003,0.8250969,169.54,169.53,216.66374034]
[1717079007172,0.8250969,169.54,169.53,209.95374034]
[1717079007775,0.8250969,169.54,169.53,150.13624034]
[1717079007996,0.8250969,169.54,169.53,156.84624034]
[1717079008392,0.8250969,169.54,169.53,174.61624034]
[1717079009303,0.8250969,169.54,169.53,181.16374034]
[1717079009603,0.8250969,169.54,169.53,174.61624034]
[1717079010302,0.8250969,169.54,169.53,150.13624034]
[1717079011137,0.8250969,169.54,169.53,127.1825]
[1717079011296,0.8250969,169.54,169.53,133.8925]
[1717079011497,0.8250969,169.54,169.53,88.8925]
[1717079011800,0.8250969,169.54,169.53,68.8925]
[1717079012188,0.8250969,169.54,169.53,62.1825]
[1717079013215,0.8250969,169.54,169.53,88.8925]
[1717079013595,0.8250969,169.54,169.53,133.8925]
[1717079013806,0.8250969,169.54,169.53,127.1825]
[1717079014006,0.8250969,169.54,169.53,60.0]
[1717079014210,0.8250969,169.54,169.51,60.0]
[1717079014505,0.8250969,169.54,169.53,60.0]
[1717079016010,8.8919,169.58,169.53,60.0]
[1717079017685,39.29960735,169.65,169.51,60.0]
[1717079017896,46.76990114,169.64,169.49,60.0]
[1717079018312,15.2724,169.59,169.49,60.0]
[1717079018625,2.1821,169.56,169.49,60.0]
[1717079019286,2.1822,169.55,169.49,60.0]
[1717079019687,2.1822,169.55,169.51,60.0]
[1717079020098,2.1822,169.55,169.49,66.71]
[1717079020300,2.1822,169.55,169.49,60.0]
[1717079020815,2.1823,169.54,169.49,60.0]
[1717079021192,2.1822,169.55,169.49,60.0]
[1717079022117,2.1822,169.55,169.49,66.71]
[1717079022290,2.1822,169.55,169.49,60.0]
[1717079022493,2.1822,169.55,169.49,66.71]
[1717079023424,2.1822,169.55,169.49,60.0]
[1717079023718,2.1822,169.55,169.49,66.71]
[1717079024515,2.1822,169.55,169.49,60.0]
[1717079024698,2.1824,169.54,169.49,60.0]
[1717079025012,4.3637,169.58,169.49,60.0]
[1717079025419,2.1823,169.55,169.47,60.0]
[1717079025810,2.1823,169.55,169.48,6.71]
[1717079026719,4.3637,169.58,169.47,60.0]
[1717079026893,6.13360114,169.58,169.46,6.71]
[1717079027106,6.5463,169.56,169.43,62.1837]
[1717079027302,2.1829,169.5,169.43,60.0]
[1717079027509,1.76990114,169.56,169.43,60.0]
[1717079027510,4.365,169.53,169.43,60.0]
[1717079027823,2.1827,169.51,169.43,60.0]
[1717079028002,2.1827,169.51,169.45,60.0]
[1717079028201,6.71,169.53,169.49,60.0]
[1717079028399,6.71,169.53,169.42,169.05121334]
[1717079028400,13.091,169.59,169.42,169.05121334]
[1717079028602,2.1821,169.56,169.5,60.0]
[1717079028799,2.1821,169.56,169.51,6.71]
[1717079029119,2.1821,169.56,169.5,60.0]
[1717079029120,6.71,169.55,169.47,60.0]
[1717079029421,6.71,169.52,169.46,6.71]
[1717079029602,6.71,169.52,169.45,60.0]
[1717079029804,6.71,169.52,169.46,6.71]
[1717079030007,2.1824,169.54,169.47,66.71]
[1717079030322,2.1824,169.54,169.46,2.1833]
[1717079030323,2.1824,169.54,169.49,60.0]
[1717079031419,2.1822,169.55,169.49,60.0]
[1717079031734,2.1823,169.54,169.48,6.71]
[1717079031930,2.1823,169.54,169.49,6.71]
[1717079032322,2.1821,169.56,169.5,60.0]
[1717079032630,4.363,169.61,169.52,66.71]
[1717079032928,2.1822,169.55,169.48,60.0]
[1717079033105,2.1822,169.55,169.49,6.71]
[1717079034108,2.1821,169.56,169.49,6.71]
[1717079037335,2.1821,169.56,169.5,6.71]
[1717079038225,8.8921,169.56,169.49,2.183]
[1717079038414,8.8921,169.56,169.5,6.71]
[1717079039011,8.8921,169.56,169.49,2.183]
[1717079039432,8.8921,169.56,169.5,66.71]
[1717079040030,8.8921,169.56,169.5,60.0]
[1717079040235,8.8921,169.56,169.5,66.71]
[1717079040817,8.8921,169.56,169.5,60.0]
[1717079040818,2.1822,169.55,169.5,60.0]
[1717079041014,4.3634,169.59,169.5,66.71]
[1717079041231,2.1821,169.56,169.5,66.71]
[1717079041437,2.1821,169.56,169.5,6.71]
[1717079042438,2.1821,169.56,169.5,66.71]
[1717079042841,2.182,169.57,169.5,66.71]
[1717079043139,2.1821,169.56,169.5,6.71]
[1717079043436,2.1821,169.56,169.51,66.71]
[1717079044014,2.1821,169.56,169.51,60.0]
[1717079044214,2.1821,169.56,169.51,66.71]
[1717079044616,2.182,169.57,169.51,66.71]
[1717079045433,2.182,169.57,169.52,6.71]
[1717079045632,2.1819,169.58,169.53,66.71]
[1717079046034,2.182,169.57,169.53,66.71]
[1717079046417,4.3629,169.61,169.54,6.71]
[1717079046631,2.1818,169.59,169.53,66.71]
[1717079046837,2.1818,169.58,169.53,66.71]
[1717079047037,6.5438,169.63,169.56,60.0]
[1717079047339,13.087,169.64,169.55,6.71]
[1717079047525,2.1816,169.6,169.55,6.71]
[1717079047721,2.1817,169.59,169.54,111.71]
[1717079048134,2.1817,169.59,169.56,60.0]
[1717079048437,2.1816,169.6,169.56,60.0]
[1717079048919,4.3624,169.63,169.56,60.0]
[1717079048920,2.1817,169.59,169.56,60.0]
[1717079049319,2.1816,169.6,169.56,60.0]
[1717079049538,8.8916,169.6,169.56,60.0]
[1717079049749,6.5438,169.63,169.54,105.0]
[1717079049923,6.5438,169.63,169.49,4.3658]
[1717079049924,8.8919,169.58,169.52,60.0]
[1717079050125,8.8919,169.58,169.52,66.71]
[1717079050324,2.1819,169.58,169.52,60.0]
[1717079050519,6.71,169.57,169.52,60.0]
[1717079050750,6.71,169.57,169.52,62.1825]
[1717079051043,2.1817,169.59,169.54,60.0]
[1717079051339,2.1818,169.58,169.54,60.0]
[1717079051532,6.71,169.58,169.54,60.0]
[1717079051740,2.1818,169.58,169.54,60.0]
[1717079051927,6.71,169.57,169.54,60.0]
[1717079052337,6.71,169.57,169.52,60.0]
[1717079052643,10.9088,169.59,169.49,60.0]
[1717079052848,2.1822,169.55,169.49,60.0]
[1717079053524,2.1821,169.56,169.49,62.183]
[1717079053723,2.1821,169.56,169.5,2.1828]
[1717079053951,2.1821,169.56,169.51,60.0]
[1717079054732,2.1821,169.56,169.53,60.0]
[1717079055148,8.8721,169.56,169.53,60.0]
[1717079055561,8.8721,169.56,169.5,66.69]
[1717079055729,8.8721,169.56,169.51,45.0]
[1717079056234,2.1822,169.55,169.51,45.0]
[1717079056446,2.1822,169.55,169.5,60.0]
[1717079056447,6.69,169.54,169.5,60.0]
[1717079057836,6.69,169.52,169.5,60.0]
[1717079058039,2.1821,169.56,169.5,60.0]
[1717079058240,6.69,169.55,169.5,62.1828]
[1717079058946,8.8723,169.55,169.5,60.0]
[1717079059139,2.1824,169.54,169.5,60.0]
[1717079059456,8.8723,169.55,169.5,60.0]
[1717079059661,6.69,169.55,169.5,60.0]
[1717079059951,2.182,169.57,169.52,60.0]
[1717079060152,2.1819,169.58,169.54,60.0]
[1717079060551,10.9081,169.6,169.51,105.0]
[1717079060752,6.5448,169.6,169.51,105.0]
[1717079061174,2.1821,169.56,169.51,60.0]
[1717079061461,2.182,169.57,169.51,60.0]
[1717079061864,2.1821,169.56,169.51,60.0]
[1717079062037,2.182,169.57,169.51,60.0]
[1717079062957,2.1818,169.58,169.53,60.0]
[1717079063761,10.9076,169.61,169.53,60.0]
[1717079064058,2.1819,169.58,169.53,60.0]
[1717079064835,2.182,169.57,169.51,62.1827]
[1717079065441,6.69,169.56,169.51,62.1827]
[1717079065665,6.69,169.56,169.51,60.0]
[1717079065857,2.1821,169.56,169.51,60.0]
[1717079066164,2.182,169.57,169.51,60.0]
[1717079066746,2.1821,169.56,169.51,60.0]
[1717079068165,2.182,169.57,169.51,60.0]
[1717079068467,2.182,169.57,169.51,62.1826]
[1717079070167,2.1818,169.58,169.52,2.1826]
[1717079070560,2.1819,169.57,169.51,62.1827]
[1717079071465,11.0533,169.6,169.51,62.1827]
[1717079071466,2.1819,169.58,169.52,2.1826]
[1717079071676,2.1819,169.58,169.53,60.0]
[1717079073751,2.182,169.57,169.53,60.0]
[1717079073951,2.1821,169.56,169.51,62.1826]
[1717079074280,6.69,169.56,169.51,62.1827]
[1717079074456,6.69,169.56,169.5,2.1828]
[1717079074457,8.8721,169.56,169.5,2.1828]
[1717079074669,2.1821,169.56,169.5,2.1828]
[1717079074858,2.1821,169.56,169.51,60.0]
[1717079075455,2.1821,169.56,169.5,2.1828]
[1717079076198,6.69,169.52,169.48,2.183]
[1717079076470,6.5466,169.56,169.49,7.08246677]
[1717079076675,6.5466,169.56,169.46,2.1833]
[1717079076676,6.69,169.5,169.46,2.1833]
[1717079076879,2.1825,169.53,169.47,69.26605393]
[1717079077069,6.69,169.5,169.48,7.08285393]
[1717079077255,6.69,169.51,169.48,7.08285393]
[1717079078080,6.69,169.51,169.48,60.0]
[1717079078562,2.1826,169.52,169.46,2.1833]
[1717079078773,2.1826,169.52,169.47,7.08320703]
[1717079079083,6.69,169.5,169.47,7.08320703]
[1717079079384,6.69,169.5,169.48,7.08320703]
[1717079079692,6.69,169.5,169.46,2.1834]
[1717079079987,2.1826,169.52,169.47,7.08357332]
[1717079080669,8.8725,169.53,169.47,69.26677332]
[1717079080857,44.07678227,169.64,169.51,60.0]
[1717079081064,2.1821,169.56,169.51,60.0]
[1717079081260,2.1821,169.56,169.51,66.69]
[1717079081487,2.182,169.57,169.51,66.69]
[1717079081670,44.07678227,169.64,169.49,60.0]
[1717079081873,6.69,169.53,169.47,6.69]
[1717079082074,2.1823,169.55,169.48,15.95605137]
[1717079082281,2.1823,169.54,169.48,6.69]
[1717079082669,2.1822,169.55,169.48,8.8731]
[1717079082879,8.8722,169.55,169.49,6.69]
[1717079083587,8.8722,169.55,169.48,2.1831]
[1717079083787,8.8722,169.55,169.49,6.69]
[1717079084287,8.8722,169.55,169.49,66.69]
[1717079085494,4.3637,169.58,169.5,6.69]
[1717079085801,4.3637,169.58,169.49,60.0]
[1717079085802,4.3641,169.57,169.49,60.0]
[1717079085975,2.1824,169.54,169.49,60.0]
[1717079086166,2.1824,169.54,169.49,66.69]
[1717079087275,2.1822,169.55,169.49,66.69]
[1717079087990,2.1822,169.55,169.49,60.0]
[1717079088303,2.1824,169.54,169.49,60.0]
[1717079088595,2.1824,169.54,169.49,66.69]
[1717079088966,2.1824,169.54,169.49,60.0]
[1717079089365,2.1824,169.54,169.49,66.69]
[1717079090468,2.1823,169.55,169.49,66.69]
[1717079090673,2.1823,169.55,169.5,6.69]
[1717079091075,4.3641,169.57,169.5,6.69]
[1717079091277,2.1824,169.54,169.49,66.69]
[1717079092086,2.1824,169.54,169.49,60.0]
[1717079092290,2.1824,169.54,169.49,66.69]
[1717079092993,2.1824,169.54,169.49,60.0]
[1717079093174,2.1824,169.54,169.49,66.69]
[1717079096894,2.1824,169.54,169.49,60.0]
[1717079097210,2.1824,169.54,169.49,66.69]
[1717079098196,2.1824,169.54,169.49,60.0]
[1717079098397,2.1824,169.54,169.49,66.69]
[1717079098892,6.69,169.6,169.46,60.0]
[1717079099096,6.69,169.6,169.44,26.76]
[1717079099097,2.1828,169.51,169.47,7.08311327]
[1717079099391,2.1828,169.51,169.48,7.08311327]
[1717079099596,2.1828,169.51,169.46,7.08311327]
[1717079100491,2.1826,169.52,169.46,9.26641327]
[1717079100686,2.1826,169.52,169.47,7.08311327]
[1717079101084,2.1827,169.51,169.47,7.08311327]
[1717079101273,2.183,169.5,169.47,7.08311327]
[1717079101595,2.183,169.49,169.43,8.8737]
[1717079101798,2.183,169.49,169.44,7.08367579]
[1717079102486,2.1831,169.48,169.44,7.08367579]
[1717079103297,2.1835,169.45,169.44,7.08367579]
[1717079103979,2.1835,169.45,169.4,7.08367579]
[1717079104304,3.95330114,169.46,169.41,7.08367579]
[1717079104504,2.1834,169.46,169.42,6.69]
[1717079104795,2.1834,169.46,169.43,7.08367579]
[1717079105096,2.1833,169.47,169.43,13.77367579]
[1717079105294,4.366,169.49,169.43,13.77367579]
[1717079105295,2.1834,169.46,169.43,6.69]
[1717079105880,2.1835,169.45,169.43,6.69]
[1717079106400,2.1834,169.46,169.43,6.69]
[1717079106615,13.095,169.53,169.46,60.0]
[1717079106789,2.1828,169.51,169.46,60.0]
[1717079106982,2.1828,169.51,169.45,2.1834]
[1717079107290,2.1829,169.5,169.46,60.0]
[1717079107489,2.1829,169.5,169.44,62.1836]
[1717079107691,2.183,169.49,169.47,6.69]
[1717079108001,2.183,169.49,169.44,60.0]
[1717079108485,2.183,169.49,169.47,6.69]
[1717079108888,2.1829,169.5,169.47,6.69]
[1717079109405,2.183,169.49,169.47,6.69]
[1717079109578,2.1829,169.5,169.47,6.69]
[1717079110182,5.904,169.69,169.44,2.1836]